bitfinex/quotes_SOLUSD_20241016
["timestamp","ask_amount","ask_price","bid_price","bid_amount"]
[1729083008290,6.4218,155.72,155.65,23.776884]
[1729083008926,6.4214,155.73,155.65,23.776884]
[1729083009215,16.0499,155.77,155.65,23.776884]
[1729083009408,21.7251,155.78,155.68,19.86909136]
[1729083009613,21.7251,155.78,155.69,23.776884]
[1729083009911,6.42,155.77,155.69,23.776884]
[1729083010490,6.42,155.77,155.71,23.776884]
[1729083011709,21.7251,155.78,155.71,23.776884]
[1729083011910,28.1444,155.78,155.71,23.776884]
[1729083012097,12.8136,155.78,155.71,23.776884]
[1729083012298,6.3943,155.78,155.71,23.776884]
[1729083012494,6.4189,155.79,155.72,19.86909136]
[1729083013193,22.7189,155.82,155.73,23.776884]
[1729083013194,6.4182,155.81,155.73,23.776884]
[1729083013417,6.4182,155.81,155.75,23.776884]
[1729083013626,29.1365,155.82,155.75,23.776884]
[1729083013794,6.4168,155.84,155.76,19.86909136]
[1729083014119,6.6249,155.86,155.76,19.86909136]
[1729083014120,6.9164,155.85,155.77,23.776884]
[1729083014302,6.9164,155.85,155.79,23.776884]
[1729083014612,0.5,155.85,155.79,23.776884]
[1729083014797,0.5,155.85,155.75,15.5181]
[1729083015118,6.4175,155.83,155.76,23.776884]
[1729083015515,6.4179,155.82,155.76,23.776884]
[1729083016015,6.418,155.81,155.76,23.776884]
[1729083016913,6.4177,155.82,155.76,23.776884]
[1729083018810,6.4177,155.82,155.75,23.776884]
[1729083019428,6.4182,155.81,155.75,23.776884]
[1729083020726,6.4176,155.83,155.75,23.776884]
[1729083021097,6.4176,155.82,155.75,23.776884]
[1729083021599,0.5,155.85,155.79,23.776884]
[1729083021802,0.5,155.85,155.8,19.86909136]
[1729083022523,0.5,155.85,155.79,23.776884]
[1729083022723,0.5,155.85,155.8,19.86909136]
[1729083023324,0.5,155.85,155.79,23.776884]
[1729083025022,6.4169,155.84,155.79,23.776884]
[1729083025708,6.9164,155.85,155.79,23.776884]
[1729083026025,0.5,155.85,155.79,23.776884]
[1729083028342,6.4169,155.84,155.79,23.776884]
[1729083028535,22.5273,155.84,155.76,8.28333709]
[1729083028723,6.4181,155.81,155.74,16.4642]
[1729083029032,6.4177,155.82,155.74,16.4642]
[1729083029934,6.4185,155.8,155.72,28.15242845]
[1729083030139,6.4189,155.79,155.72,8.28333709]
[1729083031329,6.4185,155.8,155.73,23.776884]
[1729083031527,6.4185,155.8,155.73,32.06022109]
[1729083031947,6.4181,155.81,155.73,32.06022109]
[1729083032621,6.4185,155.8,155.73,32.06022109]
[1729083034213,22.5273,155.84,155.77,23.776884]
[1729083034434,0.5,155.85,155.79,23.776884]
[1729083034825,0.5,155.85,155.81,23.776884]
[1729083036818,0.5,155.85,155.77,15.9947]
[1729083036819,0.5,155.85,155.74,0.1]
[1729083037038,0.5,155.85,155.74,43.876884]
[1729083037332,6.9168,155.85,155.76,43.776884]
[1729083037738,6.9168,155.85,155.76,31.96288031]
[1729083038229,6.9165,155.85,155.78,23.776884]
[1729083038837,0.5,155.85,155.78,23.776884]
[1729083039011,0.5,155.85,155.8,23.776884]
[1729083040836,0.5,155.85,155.78,15.5431]
[1729083041035,6.417,155.84,155.79,23.776884]
[1729083041229,6.4173,155.83,155.74,17.32685304]
[1729083041440,6.4169,155.84,155.74,17.42685304]
[1729083042726,6.4169,155.84,155.75,23.776884]
[1729083044443,0.5,155.85,155.75,43.74597536]
[1729083044740,0.5,155.85,155.77,43.64597536]
[1729083044914,6.9164,155.85,155.77,43.64597536]
[1729083045521,6.9165,155.85,155.77,43.64597536]
[1729083046036,6.9165,155.85,155.77,23.776884]
[1729083046543,0.5,155.85,155.77,23.776884]
[1729083046922,6.4173,155.83,155.77,23.776884]
[1729083047447,6.9165,155.85,155.77,23.776884]
[1729083047830,6.4175,155.83,155.77,23.776884]
[1729083048647,6.4175,155.83,155.74,15.5431]
[1729083048648,6.4391,155.82,155.74,23.776884]
[1729083049454,12.8568,155.82,155.74,23.776884]
[1729083050151,12.8568,155.82,155.74,31.96288031]
[1729083053447,6.9167,155.85,155.75,28.05508767]
[1729083053639,6.9167,155.85,155.76,23.776884]
[1729083056933,0.5,155.85,155.76,23.776884]
[1729083057136,6.4169,155.84,155.76,23.776884]
[1729083061230,0.5,155.85,155.76,23.776884]
[1729083061231,0.5,155.85,155.78,23.776884]
[1729083061430,0.5,155.85,155.78,23.876884]
[1729083061627,0.5,155.85,155.78,23.776884]
[1729083062044,0.5,155.85,155.78,23.876884]
[1729083062245,0.5,155.85,155.8,23.776884]
[1729083063642,0.5,155.85,155.82,23.776884]
[1729083064766,0.5,155.85,155.81,23.776884]
[1729083066140,6.9164,155.85,155.77,38.12452108]
[1729083066455,22.0927,155.85,155.78,23.776884]
[1729083067664,15.6763,155.85,155.78,23.776884]
[1729083068169,6.4168,155.84,155.78,23.776884]
[1729083069257,6.5918,155.83,155.78,23.776884]
[1729083069456,6.4177,155.82,155.75,8.18599631]
[1729083070166,6.5918,155.83,155.75,8.18599631]
[1729083070462,6.5918,155.83,155.75,28.05508767]
[1729083070665,6.5918,155.83,155.76,31.96288031]
[1729083072661,6.418,155.82,155.76,23.776884]
[1729083072962,6.418,155.82,155.75,23.776884]
[1729083073347,6.5918,155.83,155.76,8.18599631]
[1729083073957,0.5,155.85,155.77,19.86909136]
[1729083074147,0.5,155.85,155.79,19.86909136]
[1729083074342,0.5,155.85,155.79,28.15508767]
[1729083074565,0.5,155.85,155.8,23.776884]
[1729083075669,0.5,155.85,155.81,19.86909136]
[1729083075871,0.5,155.85,155.82,23.776884]
[1729083080085,0.5,155.85,155.81,8.18599631]
[1729083080286,6.9164,155.85,155.76,1.79085077]
[1729083080460,6.7537,155.85,155.76,8.18599631]
[1729083081257,13.1701,155.85,155.76,8.18599631]
[1729083081659,6.7537,155.85,155.76,8.18599631]
[1729083082181,6.7537,155.85,155.77,19.86909136]
[1729083082480,6.7537,155.85,155.79,23.776884]
[1729083082686,0.5,155.85,155.79,8.18599631]
[1729083083184,0.5,155.85,155.8,23.776884]
[1729083084080,0.5,155.85,155.8,31.96288031]
[1729083087763,0.5,155.85,155.81,8.18599631]
[1729083087963,0.5,155.85,155.82,23.776884]
[1729083089466,0.5,155.85,155.76,19.86909136]
[1729083089678,0.5,155.85,155.76,8.18599631]
[1729083089859,15.6149,155.83,155.76,8.18599631]
[1729083090179,15.6149,155.83,155.73,6.70146667]
[1729083090384,15.6149,155.83,155.72,8.18599631]
[1729083090589,6.4189,155.79,155.72,8.18599631]
[1729083091376,6.4185,155.8,155.73,23.776884]
[1729083091979,6.4185,155.8,155.73,8.18599631]
[1729083093104,6.4181,155.81,155.73,8.18599631]
[1729083093391,15.6149,155.83,155.74,23.776884]
[1729083095397,6.4182,155.81,155.74,23.776884]
[1729083096672,15.6149,155.83,155.74,23.776884]
[1729083096996,15.6149,155.83,155.74,51.83197167]
[1729083098203,6.1056,155.84,155.78,19.86909136]
[1729083098500,0.5,155.85,155.8,19.86909136]
[1729083098695,0.5,155.85,155.81,23.776884]
[1729083101075,0.5,155.85,155.84,19.86909136]
[1729083101275,0.5,155.85,155.84,43.64597536]
[1729083102401,0.5,155.85,155.84,23.776884]
[1729083116617,0.5,155.85,155.81,8.18599631]
[1729083116806,0.5,155.85,155.77,15.2764]
[1729083117005,16.7869,155.85,155.77,8.18599631]
[1729083117500,6.4181,155.81,155.72,8.18599631]
[1729083117695,6.0804,155.8,155.72,14.88895879]
[1729083118429,6.0804,155.8,155.72,14.98895879]
[1729083118615,6.0804,155.8,155.73,8.18599631]
[1729083119020,6.0804,155.8,155.74,23.776884]
[1729083121216,15.7789,155.79,155.74,8.18599631]
[1729083121430,15.7789,155.79,155.67,8.18599631]
[1729083121431,6.4201,155.76,155.67,8.18599631]
[1729083121714,6.4201,155.76,155.66,6.7055254]
[1729083122092,15.7789,155.79,155.66,6.7055254]
[1729083122303,6.4341,155.78,155.65,8.18599631]
[1729083122899,22.5282,155.76,155.63,6.70690341]
[1729083123097,22.5282,155.76,155.61,8.18599631]
[1729083123301,6.4229,155.7,155.61,8.18599631]
[1729083123512,6.633,155.72,155.61,8.18599631]
[1729083124426,6.4234,155.68,155.61,8.18599631]
[1729083124606,6.633,155.64,155.57,6.70902501]
[1729083125127,6.4259,155.62,155.54,34.69266971]
[1729083125418,6.4259,155.62,155.54,29.21986003]
[1729083126225,15.8952,155.63,155.54,29.21986003]
[1729083126603,6.4259,155.62,155.54,29.21986003]
[1729083127224,22.3208,155.63,155.54,29.21986003]
[1729083127440,15.8952,155.63,155.55,23.776884]
[1729083129931,6.633,155.64,155.56,20.0]
[1729083130106,6.633,155.64,155.57,23.776884]
[1729083131406,6.633,155.64,155.5,37.9152294]
[1729083131626,6.4264,155.61,155.53,20.0]
[1729083131833,6.4273,155.59,155.49,7.73121298]
[1729083132038,6.4273,155.59,155.48,42.20123364]
[1729083132224,21.988,155.59,155.51,6.7129823]
[1729083132543,21.988,155.59,155.48,42.20123364]
[1729083132727,21.988,155.59,155.48,48.91440838]
[1729083133039,21.988,155.59,155.49,23.776884]
[1729083133823,21.988,155.59,155.51,23.776884]
[1729083134227,15.5607,155.59,155.51,23.776884]
[1729083135935,6.4282,155.57,155.51,23.776884]
[1729083136135,6.5907,155.56,155.46,7.86383658]
[1729083136338,6.4288,155.55,155.47,20.0]
[1729083136547,6.4293,155.54,155.46,7.86383658]
[1729083137239,6.4288,155.55,155.46,7.86383658]
[1729083137930,6.4288,155.55,155.47,23.776884]
[1729083138248,13.0191,155.56,155.47,23.776884]
[1729083138547,6.5907,155.56,155.47,55.5071134]
[1729083138730,6.5907,155.56,155.49,23.776884]
[1729083141442,6.5907,155.56,155.46,0.1326236]
[1729083141752,6.4301,155.52,155.46,0.1326236]
[1729083141929,15.9044,155.55,155.46,0.1326236]
[1729083142128,6.4309,155.5,155.46,0.1326236]
[1729083142525,6.4316,155.49,155.46,0.1326236]
[1729083142726,6.0441,155.47,155.46,0.1326236]
[1729083143834,6.3758,155.5,155.46,0.1326236]
[1729083147325,6.4321,155.47,155.46,0.1326236]
[1729083147524,22.6462,155.47,155.46,0.1326236]
[1729083148656,28.9431,155.47,155.46,0.1326236]
[1729083152452,28.9431,155.47,155.46,2.36e-05]
[1729083152657,6.4347,155.41,155.34,31.50809698]
[1729083152966,6.4342,155.42,155.34,31.50809698]
[1729083153357,6.4338,155.43,155.34,31.50809698]
[1729083154553,6.4338,155.43,155.34,39.45771975]
[1729083154967,6.4338,155.43,155.34,38.95771975]
[1729083155357,6.4334,155.44,155.34,38.95771975]
[1729083156062,22.511,155.47,155.34,38.95771975]
[1729083156253,6.4338,155.43,155.34,38.95771975]
[1729083157078,22.511,155.47,155.34,38.95771975]
[1729083157260,22.511,155.47,155.34,31.00809698]
[1729083157779,6.4341,155.42,155.34,31.00809698]
[1729083157953,6.4338,155.43,155.34,31.00809698]
[1729083159377,6.4345,155.42,155.34,31.00809698]
[1729083160769,6.4338,155.43,155.34,31.00809698]
[1729083160970,38.5917,155.47,155.34,31.00809698]
[1729083161281,6.4348,155.41,155.34,31.00809698]
[1729083161454,6.4342,155.42,155.34,31.00809698]
[1729083163077,6.4312,155.49,155.39,20.0]
[1729083163254,21.9585,155.53,155.4,23.776884]
[1729083163460,6.4305,155.51,155.4,31.72650677]
[1729083164268,6.4305,155.51,155.4,23.776884]
[1729083165257,21.9585,155.53,155.4,23.776884]
[1729083165258,16.0753,155.52,155.4,23.776884]
[1729083165676,1.118416,155.53,155.43,31.8302294]
[1729083165853,22.77218717,155.59,155.47,23.776884]
[1729083166058,17.18584281,155.59,155.47,23.776884]
[1729083166981,6.4301,155.52,155.45,23.776884]
[1729083167182,6.4295,155.54,155.46,20.0]
[1729083167780,23.776884,155.58,155.47,23.776884]
[1729083168185,6.4294,155.54,155.47,23.776884]
[1729083169375,23.776884,155.58,155.47,23.776884]
[1729083169585,17.18584281,155.59,155.47,23.776884]
[1729083169766,1.11804281,155.59,155.48,20.0]
[1729083169970,6.4295,155.54,155.48,20.0]
[1729083170175,6.4295,155.54,155.46,20.0]
[1729083170463,6.4295,155.54,155.47,23.776884]
[1729083170684,6.4295,155.54,155.48,20.0]
[1729083171280,6.4295,155.54,155.46,23.776884]
[1729083171486,6.4295,155.54,155.47,20.0]
[1729083171785,6.4288,155.55,155.48,23.776884]
[1729083172084,6.4295,155.54,155.46,20.0]
[1729083172282,6.4295,155.54,155.47,23.776884]
[1729083173880,6.4287,155.56,155.47,23.776884]
[1729083174577,6.4287,155.56,155.47,32.93086905]
[1729083175169,6.428,155.57,155.49,23.776884]
[1729083176375,6.4275,155.58,155.5,20.0]
[1729083176582,6.4275,155.58,155.51,23.776884]
[1729083177072,6.4272,155.59,155.51,23.776884]
[1729083177481,6.4277,155.58,155.51,23.776884]
[1729083178790,6.4272,155.59,155.51,23.776884]
[1729083179372,12.8529,155.6,155.51,23.776884]
[1729083180688,6.4261,155.6,155.51,23.776884]
[1729083180879,6.4276,155.58,155.51,23.776884]
[1729083181991,6.4171,155.64,155.51,31.72650677]
[1729083182185,6.4258,155.63,155.55,23.776884]
[1729083182392,6.4258,155.63,155.55,40.88049182]
[1729083183471,6.4231,155.69,155.61,23.776884]
[1729083185016,6.424,155.67,155.61,23.776884]
[1729083185175,6.4245,155.66,155.57,20.0]
[1729083185377,6.4245,155.66,155.59,20.0]
[1729083185592,6.4245,155.66,155.6,23.776884]
[1729083186178,6.4239,155.67,155.6,23.776884]
[1729083189777,6.4243,155.66,155.6,23.776884]
[1729083190212,21.9964,155.68,155.56,18.33633444]
[1729083190378,21.9964,155.68,155.56,16.5435]
[1729083190379,6.4254,155.64,155.56,16.5435]
[1729083190580,6.4247,155.65,155.56,16.5435]
[1729083191675,6.4247,155.65,155.57,23.776884]
[1729083196682,6.4243,155.66,155.57,23.776884]
[1729083197012,21.9964,155.68,155.57,31.72650677]
[1729083197311,21.9964,155.68,155.57,32.93086905]
[1729083197509,6.4238,155.67,155.57,32.93086905]
[1729083197706,28.4199,155.68,155.57,32.93086905]
[1729083198506,6.4238,155.67,155.57,32.93086905]
[1729083198888,21.9964,155.68,155.57,32.93086905]
[1729083199203,28.4199,155.68,155.57,40.88049182]
[1729083199379,22.3259,155.72,155.59,23.776884]
[1729083199582,22.3259,155.72,155.61,31.7302294]
[1729083199807,22.3259,155.72,155.62,23.776884]
[1729083200588,6.4225,155.71,155.62,23.776884]
[1729083200797,22.3259,155.72,155.62,23.776884]
[1729083200995,6.4235,155.68,155.61,23.776884]
[1729083204621,6.4242,155.66,155.57,6.08943441]
[1729083205484,6.4248,155.65,155.57,6.08943441]
[1729083205708,6.2918,155.65,155.56,25.69748505]
[1729083205912,6.2918,155.65,155.56,33.64710782]
[1729083206600,6.2918,155.65,155.57,23.776884]
[1729083208420,6.4259,155.62,155.53,31.7302294]
[1729083209001,6.4256,155.63,155.53,31.7302294]
[1729083209200,6.4256,155.63,155.53,39.67985217]
[1729083209917,6.4256,155.63,155.54,23.776884]
[1729083210419,6.4256,155.63,155.54,32.93086905]
[1729083210933,6.426,155.62,155.54,32.93086905]
[1729083213343,6.426,155.62,155.54,23.776884]
[1729083216701,6.4266,155.61,155.54,23.776884]
[1729083216927,6.4266,155.61,155.53,23.776884]
[1729083217225,6.427,155.6,155.52,23.776884]
[1729083217427,6.427,155.6,155.51,6.08943441]
[1729083217428,6.427,155.6,155.51,23.776884]
[1729083220326,6.4264,155.61,155.51,52.7664236]
[1729083221204,6.4261,155.62,155.53,19.83555455]
[1729083221401,6.4261,155.62,155.54,23.776884]
[1729083221603,38.37,155.65,155.53,23.776884]
[1729083221825,22.3081,155.65,155.53,23.776884]
[1729083222015,6.4264,155.61,155.53,23.776884]
[1729083223006,16.064,155.63,155.52,23.776884]
[1729083223212,6.4278,155.58,155.51,23.776884]
[1729083223413,6.4278,155.58,155.49,19.83555455]
[1729083223722,6.4278,155.58,155.5,6.70104349]
[1729083223929,6.4278,155.58,155.49,19.83555455]
[1729083224320,6.4278,155.58,155.5,23.776884]
[1729083225630,15.4717,155.58,155.49,23.776884]
[1729083225817,6.4283,155.56,155.49,23.776884]
[1729083226016,6.428,155.57,155.49,23.776884]
[1729083226709,21.8994,155.58,155.49,32.93086905]
[1729083230214,6.428,155.57,155.49,32.93086905]
[1729083234920,15.4717,155.58,155.49,32.93086905]
[1729083235114,21.8993,155.58,155.51,23.776884]
[1729083239074,15.4717,155.58,155.51,23.776884]
[1729083239342,6.1422,155.59,155.51,23.776884]
[1729083240129,21.801,155.62,155.51,23.776884]
[1729083240330,15.3749,155.62,155.51,23.776884]
[1729083240645,15.3749,155.62,155.54,23.776884]
[1729083240947,6.6161,155.63,155.56,23.776884]
[1729083242345,13.0416,155.63,155.56,23.776884]
[1729083242550,13.0416,155.63,155.55,23.776884]
[1729083243356,6.6161,155.63,155.55,23.776884]
[1729083244327,6.6161,155.63,155.55,43.61243855]
[1729083244532,15.0571,155.66,155.58,23.776884]
[1729083244739,6.5741,155.67,155.61,19.83555455]
[1729083244938,6.5741,155.67,155.62,23.776884]
[1729083245333,15.3201,155.7,155.62,23.776884]
[1729083246559,21.7427,155.7,155.62,23.776884]
[1729083248351,21.743,155.7,155.62,23.776884]
[1729083249129,15.3201,155.7,155.62,23.776884]
[1729083249728,15.3204,155.74,155.64,23.776884]
[1729083250344,15.3204,155.74,155.63,19.83555455]
[1729083250345,15.3204,155.74,155.66,23.776884]
[1729083252243,6.422,155.72,155.66,23.776884]
[1729083252446,6.4222,155.71,155.62,6.08943441]
[1729083252840,6.4222,155.71,155.61,36.69223744]
[1729083253741,6.4222,155.71,155.62,23.776884]
[1729083254150,6.4218,155.72,155.62,23.776884]
[1729083254549,15.3204,155.74,155.62,23.776884]
[1729083254550,6.4214,155.73,155.62,23.776884]
[1729083254742,6.4214,155.73,155.64,23.776884]
[1729083255343,6.4219,155.72,155.64,23.776884]
[1729083256665,21.7417,155.74,155.64,23.776884]
[1729083256975,15.3204,155.74,155.64,23.776884]
[1729083257672,6.4218,155.72,155.64,23.776884]
[1729083260446,15.3204,155.74,155.64,23.776884]
[1729083260766,6.4222,155.71,155.64,23.776884]
[1729083264376,6.423,155.69,155.61,15.0905]
[1729083264553,6.423,155.69,155.62,23.776884]
[1729083264954,6.4234,155.68,155.62,23.776884]
[1729083265374,6.3792,155.69,155.62,23.776884]
[1729083265581,12.8023,155.69,155.62,23.776884]
[1729083265878,12.8023,155.69,155.61,23.776884]
[1729083266676,12.8023,155.69,155.58,7.91455555]
[1729083266677,16.6649,155.68,155.58,6.08943441]
[1729083266851,16.6649,155.68,155.57,16.3258]
[1729083267189,23.0884,155.68,155.58,20.63407437]
[1729083267352,16.6649,155.68,155.6,12.6844516]
[1729083268175,16.6649,155.68,155.61,23.776884]
[1729083270957,16.6649,155.68,155.56,30.35686402]
[1729083271294,6.4251,155.64,155.56,12.6844516]
[1729083271451,12.9507,155.62,155.54,12.6844516]
[1729083271854,6.5248,155.62,155.54,12.6844516]
[1729083272082,12.9508,155.62,155.54,12.6844516]
[1729083272487,6.5248,155.62,155.54,12.6844516]
[1729083273270,6.5248,155.62,155.54,21.83843665]
[1729083273591,6.4243,155.66,155.58,12.6844516]
[1729083273897,6.4243,155.66,155.58,9.15398505]
[1729083274401,12.6925,155.67,155.59,23.776884]
[1729083274565,6.2686,155.67,155.59,23.776884]
[1729083274901,12.6924,155.67,155.59,23.776884]
[1729083275272,6.2686,155.67,155.59,23.776884]
[1729083279076,6.4246,155.65,155.59,23.776884]
[1729083279479,6.4243,155.66,155.59,23.776884]
[1729083280196,6.4243,155.66,155.58,23.776884]
[1729083280877,6.4243,155.66,155.57,23.776884]
[1729083284801,6.39656,155.66,155.57,23.776884]
[1729083286383,6.2686,155.67,155.55,23.776884]
[1729083286586,6.4253,155.64,155.55,23.776884]
[1729083288717,6.4253,155.64,155.56,9.15398505]
[1729083288884,6.4254,155.63,155.57,23.776884]
[1729083289396,6.4251,155.64,155.57,23.776884]
[1729083289907,10.02013582,155.66,155.58,9.15398505]
[1729083290212,10.02013582,155.66,155.59,23.776884]
[1729083291300,16.44443582,155.66,155.58,23.776884]
[1729083292290,10.02013582,155.66,155.58,23.776884]
[1729083293009,10.02013582,155.66,155.6,23.776884]
[1729083295697,6.2686,155.67,155.6,23.776884]
[1729083295899,6.2686,155.67,155.62,23.776884]
[1729083297100,16.6649,155.68,155.62,23.776884]
[1729083297305,6.4242,155.67,155.62,23.776884]
[1729083297584,16.6649,155.68,155.56,12.68273837]
[1729083297785,6.4756,155.65,155.56,12.68273837]
[1729083299105,6.4756,155.65,155.57,23.776884]
[1729083299418,12.9005,155.65,155.57,23.776884]
[1729083300017,6.4756,155.65,155.56,32.93086905]
[1729083300193,6.4756,155.65,155.57,9.15398505]
[1729083300396,12.9004,155.65,155.58,23.776884]
[1729083303134,6.4259,155.62,155.56,23.776884]
[1729083303424,6.4756,155.65,155.53,6.70001691]
[1729083303602,6.4263,155.61,155.53,6.70001691]
[1729083303801,15.6096,155.62,155.51,25.03068505]
[1729083304018,6.427,155.6,155.51,25.03068505]
[1729083305327,15.6096,155.62,155.52,23.776884]
[1729083305532,6.4264,155.61,155.52,32.93086905]
[1729083306218,15.6096,155.62,155.52,32.93086905]
[1729083306429,15.6096,155.62,155.52,40.88049182]
[1729083307236,15.6096,155.62,155.52,32.93086905]
[1729083307699,6.4274,155.59,155.52,32.93086905]
[1729083308125,6.4268,155.6,155.52,32.93086905]
[1729083308711,6.4275,155.59,155.52,32.93086905]
[1729083308910,6.0065,155.61,155.52,9.15398505]
[1729083309109,6.4284,155.56,155.47,16.0974]
[1729083309323,6.4284,155.56,155.48,9.15398505]
[1729083310716,6.4281,155.57,155.48,9.15398505]
[1729083311619,22.0728,155.61,155.48,9.15398505]
[1729083311620,6.4289,155.55,155.48,9.15398505]
[1729083311827,6.4289,155.55,155.49,23.776884]
[1729083312129,6.4292,155.54,155.48,9.15398505]
[1729083313031,6.0354,155.55,155.48,9.15398505]
[1729083313327,12.4642,155.55,155.48,9.15398505]
[1729083314216,6.0354,155.55,155.49,23.776884]
[1729083314415,6.0354,155.55,155.48,9.15398505]
[1729083314416,6.0354,155.55,155.5,9.15398505]
[1729083319345,24.03528584,155.6,155.51,23.776884]
[1729083319537,30.46228584,155.6,155.53,23.776884]
[1729083319718,29.3444,155.6,155.53,23.776884]
[1729083320838,6.4271,155.59,155.53,23.776884]
[1729083321624,6.4286,155.56,155.48,23.776884]
[1729083321840,22.9174,155.6,155.48,23.776884]
[1729083321841,6.428,155.57,155.48,32.93086905]
[1729083322035,6.428,155.57,155.48,23.776884]
[1729083322348,6.428,155.57,155.5,23.776884]
[1729083323620,6.4284,155.56,155.5,23.776884]
[1729083324732,16.0684,155.59,155.5,23.776884]
[1729083324930,6.4286,155.56,155.5,23.776884]
[1729083326162,22.9174,155.6,155.5,23.776884]
[1729083326459,6.4286,155.56,155.5,23.776884]
[1729083326625,6.4288,155.55,155.5,23.776884]
[1729083326828,6.4285,155.56,155.5,23.776884]
[1729083328062,38.9847,155.6,155.5,23.776884]
[1729083328345,22.9174,155.6,155.52,23.776884]
[1729083328771,6.4274,155.59,155.52,23.776884]
[1729083329155,22.9174,155.6,155.52,23.776884]
[1729083329353,22.9174,155.6,155.52,32.93086905]
[1729083329747,29.3442,155.6,155.52,32.93086905]
[1729083330151,22.9174,155.6,155.52,32.93086905]
[1729083330484,22.9174,155.6,155.52,23.776884]
[1729083330687,6.4278,155.58,155.52,23.776884]
[1729083330971,22.9174,155.6,155.52,23.776884]
[1729083331273,6.4276,155.58,155.52,23.776884]
[1729083333578,6.4282,155.57,155.47,25.25138505]
[1729083333762,22.9174,155.6,155.48,9.15398505]
[1729083334084,6.4289,155.55,155.48,9.15398505]
[1729083335257,16.0695,155.58,155.48,9.15398505]
[1729083335459,6.4294,155.54,155.48,9.15398505]
[1729083336559,27.9311,155.54,155.48,9.15398505]
[1729083337177,6.4297,155.53,155.48,9.15398505]
[1729083337574,21.5017,155.54,155.48,9.15398505]
[1729083338483,6.4303,155.52,155.42,26.00074047]
[1729083338687,6.4303,155.52,155.43,9.15398505]
[1729083339068,6.4303,155.52,155.44,23.776884]
[1729083339391,6.4303,155.52,155.45,9.15398505]
[1729083343304,21.5017,155.54,155.45,9.15398505]
[1729083343305,6.4296,155.53,155.46,23.776884]
[1729083343498,21.5017,155.54,155.48,23.776884]
[1729083343499,6.0909,155.54,155.48,23.776884]
[1729083343676,21.8519,155.58,155.49,9.15398505]
[1729083343881,22.96969647,155.58,155.49,9.15398505]
[1729083344804,6.4284,155.56,155.5,23.776884]
[1729083344986,7.49739647,155.58,155.52,23.776884]
[1729083345309,28.7656,155.62,155.54,23.776884]
[1729083345508,29.88299321,155.62,155.54,23.776884]
[1729083346017,23.45699321,155.62,155.54,32.93086905]
[1729083346300,1.1171623,155.65,155.55,32.93086905]
[1729083346677,22.3293,155.66,155.56,16.1583]
[1729083346880,22.3293,155.66,155.57,32.93086905]
[1729083347079,6.6116,155.66,155.57,32.93086905]
[1729083347286,29.0981,155.7,155.59,23.776884]
[1729083347589,22.6755,155.7,155.6,9.15398505]
[1729083347791,22.6755,155.7,155.57,14.03905718]
[1729083347792,22.7755,155.7,155.57,6.08943441]
[1729083348019,6.4501,155.64,155.51,16.1583]
[1729083348182,6.4276,155.58,155.48,6.3701]
[1729083348507,6.4277,155.58,155.48,17.34002112]
[1729083349178,6.4277,155.58,155.49,9.15398505]
[1729083349579,6.4272,155.59,155.5,23.776884]
[1729083349797,6.4272,155.59,155.5,9.15398505]
[1729083349987,6.4272,155.59,155.51,23.776884]
[1729083350184,6.4267,155.6,155.51,23.776884]
[1729083350391,6.4267,155.6,155.53,23.776884]
[1729083351711,16.2628,155.61,155.52,9.15398505]
[1729083351904,6.4279,155.57,155.52,9.15398505]
[1729083352115,16.3628,155.61,155.52,9.15398505]
[1729083352286,6.4296,155.53,155.46,9.15398505]
[1729083352489,6.4296,155.53,155.45,6.6551]
[1729083352490,6.4291,155.55,155.47,9.15398505]
[1729083353580,6.4294,155.54,155.47,9.15398505]
[1729083354287,20.0,155.59,155.47,9.15398505]